bitfinex-derivatives/quotes_SOLF0:USTF0_20260115
["timestamp","ask_amount","ask_price","bid_price","bid_amount"]
[1768485391261,0.88796681,145.25,145.22,2.17517565]
[1768485391464,5.41233644,145.24,145.22,2.17517565]
[1768485391665,0.94037341,145.25,145.22,2.17517565]
[1768485391966,5.41233644,145.24,145.22,2.17517565]
[1768485392267,0.94037341,145.25,145.22,2.17517565]
[1768485392572,5.41247046,145.24,145.22,2.17517565]
[1768485392772,0.94037341,145.25,145.22,2.17517565]
[1768485393071,0.94641015,145.27,145.22,2.17517565]
[1768485393271,0.94641015,145.27,145.22,2.12622297]
[1768485394374,0.94641015,145.27,145.23,0.04921661]
[1768485394770,0.04690574,145.26,145.23,0.04921661]
[1768485395473,0.92530856,145.29,145.26,2.12622297]
[1768485395870,83.48622297,145.35,145.26,2.12622297]
[1768485396071,5.3561596,145.34,145.26,2.12622297]
[1768485396272,5.3561596,145.33,145.26,2.12622297]
[1768485396472,0.04892491,145.31,145.29,0.05138154]
[1768485398778,0.04892491,145.31,145.27,6.1971]
[1768485398779,1.02994326,145.31,145.27,6.1971]
[1768485399678,1.02994326,145.31,145.28,0.0468322]
[1768485405784,6.45519623,145.3,145.26,6.1976]
[1768485405983,1.11881585,145.3,145.26,6.1976]
[1768485406786,1.11881585,145.3,145.27,0.0463328]
[1768485408893,1.11881585,145.3,145.27,6.2435328]
[1768485410087,1.585e-05,145.3,145.27,6.2435328]
[1768485411896,1.585e-05,145.3,145.22,96.4306]
[1768485412092,3.31815298,145.33,145.21,107.32383128]
[1768485412093,5.33425533,145.29,145.21,107.32383128]
[1768485412294,5.33425533,145.28,145.21,107.32383128]
[1768485412596,3.31815298,145.33,145.21,107.32383128]
[1768485412896,10.67359661,145.32,145.21,107.32383128]
[1768485413094,10.67359661,145.31,145.21,107.32383128]
[1768485413295,10.67359661,145.3,145.21,107.32383128]
[1768485413495,5.33516354,145.29,145.21,107.32383128]
[1768485413696,5.33516354,145.28,145.21,107.32383128]
[1768485413997,2.97e-06,145.27,145.24,6.1983]
[1768485414194,6.1956,145.31,145.24,6.1983]
[1768485414496,5.33891479,145.3,145.22,6.1989]
[1768485414697,5.38369977,145.29,145.22,6.1989]
[1768485414993,0.04478498,145.29,145.2,6.1998]
[1768485415294,3.31815298,145.31,145.2,6.1998]
[1768485415493,5.34061917,145.3,145.2,13.7678783]
[1768485415690,11.53701917,145.29,145.21,6.1997]
[1768485415892,0.04446991,145.26,145.21,13.7677783]
[1768485418498,0.04446991,145.26,145.22,0.04417574]
[1768485422498,0.04446991,145.26,145.22,13.81145404]
[1768485422698,6.1958,145.31,145.23,7.5680783]
[1768485422898,5.32671572,145.3,145.23,7.5680783]
[1768485423094,5.32671572,145.29,145.24,10.88623128]
[1768485423295,6.1958,145.31,145.24,10.88623128]
[1768485423491,5.32745657,145.3,145.24,10.88623128]
[1768485423699,0.04879673,145.28,145.26,0.0464964]
[1768485425904,5.31264481,145.27,145.26,0.0464964]
[1768485426206,0.04879673,145.28,145.26,0.0464964]
[1768485429316,6.1954,145.32,145.26,0.0464964]
[1768485429510,5.33046452,145.31,145.26,0.0464964]
[1768485429710,5.33046452,145.3,145.26,0.0464964]
[1768485429915,6.1954,145.32,145.26,0.0464964]
[1768485430114,5.33046791,145.31,145.26,0.0464964]
[1768485430308,5.37905067,145.3,145.26,0.0464964]
[1768485430508,0.04858276,145.3,145.26,0.0464964]
[1768485432408,5.33210056,145.29,145.26,0.0464964]
[1768485432608,0.04858276,145.3,145.26,0.0464964]
[1768485433109,5.33210395,145.29,145.26,0.0464964]
[1768485433309,0.04858276,145.3,145.26,0.0464964]
[1768485433610,5.33252724,145.29,145.26,0.0464964]
[1768485433809,0.04858276,145.3,145.26,0.0464964]
[1768485434009,5.33252724,145.29,145.26,0.0464964]
[1768485434309,0.04858276,145.3,145.26,0.0464964]
[1768485434615,5.33300055,145.29,145.26,0.0464964]
[1768485434817,0.04858276,145.3,145.26,0.0464964]
[1768485435015,5.33317274,145.29,145.26,0.0464964]
[1768485435221,0.04858276,145.3,145.26,0.0464964]
[1768485435414,5.33370992,145.29,145.26,0.0464964]
[1768485435613,0.04858276,145.3,145.26,0.0464964]
[1768485435806,5.33370992,145.29,145.26,0.0464964]
[1768485436012,0.04858276,145.3,145.26,0.0464964]
[1768485436319,5.3335417,145.29,145.26,0.0464964]
[1768485436618,0.04858276,145.3,145.26,0.0464964]
[1768485438121,5.29496867,145.29,145.26,0.0464964]
[1768485438313,6.867e-05,145.28,145.26,0.0464964]
[1768485438616,81.36,145.35,145.26,13.8121747]
[1768485438818,5.33476162,145.34,145.26,13.7656783]
[1768485439112,5.33443015,145.33,145.26,13.7656783]
[1768485439316,11.52953015,145.32,145.26,13.7656783]
[1768485439520,5.33443015,145.31,145.26,13.7656783]
[1768485439817,0.04798985,145.3,145.28,0.04739629]
[1768485443025,0.04798985,145.3,145.26,7.5680783]
[1768485444222,0.04798985,145.3,145.27,0.04963912]
[1768485444427,0.04798985,145.3,145.23,14.34680821]
[1768485444726,5.3356557,145.29,145.23,14.34680821]
[1768485445022,0.04798985,145.3,145.23,14.34680821]
[1768485445220,5.33566398,145.29,145.23,14.34680821]
[1768485445425,0.04798985,145.3,145.23,14.34680821]
[1768485445723,5.33595088,145.29,145.25,0.04415613]
[1768485446025,6.24388985,145.3,145.25,0.04415613]
[1768485446228,5.33595427,145.29,145.25,0.04415613]
[1768485446428,6.24388985,145.3,145.25,0.04415613]
[1768485446727,5.33625893,145.29,145.25,0.04415613]
[1768485446924,6.1965,145.29,145.25,0.04415613]
[1768485448522,5.36615198,145.28,145.25,0.04415613]
[1768485448726,6.1965,145.29,145.25,0.04415613]
[1768485449033,5.36614517,145.28,145.25,0.04415613]
[1768485449230,6.1965,145.29,145.25,0.04415613]
[1768485449529,5.36631857,145.28,145.25,0.04415613]
[1768485449830,6.1965,145.29,145.25,0.04415613]
[1768485450022,5.36649598,145.28,145.25,0.04415613]
[1768485450327,6.1965,145.29,145.25,0.04415613]
[1768485450328,5.26393951,145.27,145.25,0.04415613]
[1768485450531,6.1965,145.29,145.25,0.04415613]
[1768485450828,10.63031977,145.28,145.25,0.04415613]
[1768485451028,5.26383114,145.27,145.25,0.04415613]
[1768485451229,6.1965,145.29,145.25,0.04415613]
[1768485451429,10.63078619,145.28,145.25,0.04415613]
[1768485451628,5.26406472,145.27,145.25,0.04415613]
[1768485451930,6.1965,145.29,145.25,0.04415613]
[1768485452129,10.63078619,145.28,145.25,0.04415613]
[1768485452326,5.26406472,145.27,145.25,0.04415613]
[1768485452629,6.1965,145.29,145.25,0.04415613]
[1768485452831,10.63156879,145.28,145.25,0.04415613]
[1768485453038,5.264426,145.27,145.25,0.04415613]
[1768485453330,6.1965,145.29,145.25,0.04415613]
[1768485453530,5.26457913,145.28,145.25,0.04415613]
[1768485453731,5.26457913,145.27,145.25,0.04415613]
[1768485453931,6.1965,145.29,145.25,0.04415613]
[1768485454119,10.63170554,145.28,145.25,0.04415613]
[1768485454320,5.26447075,145.27,145.25,0.04415613]
[1768485454524,6.1965,145.29,145.25,0.04415613]
[1768485454722,10.63235111,145.28,145.25,0.04415613]
[1768485454920,5.26484015,145.27,145.25,0.04415613]
[1768485455119,6.1965,145.29,145.25,0.04415613]
[1768485455338,10.63249711,145.28,145.25,0.04415613]
[1768485455528,5.26498615,145.27,145.25,0.04415613]
[1768485455831,6.1965,145.29,145.25,0.04415613]
[1768485456127,5.26502353,145.28,145.25,0.04415613]
[1768485456325,5.26502353,145.27,145.25,0.04415613]
[1768485456520,6.1965,145.29,145.25,0.04415613]
[1768485456724,5.26531252,145.28,145.25,0.04415613]
[1768485456929,5.26531252,145.27,145.25,0.04415613]
[1768485457132,6.1965,145.29,145.25,0.04415613]
[1768485457334,10.63369073,145.28,145.25,0.04415613]
[1768485457633,5.26545509,145.27,145.25,0.04415613]
[1768485457828,6.1965,145.29,145.25,0.04415613]
[1768485458132,10.63331691,145.28,145.25,0.04415613]
[1768485458336,5.2653467,145.27,145.25,0.04415613]
[1768485458527,6.1965,145.29,145.25,0.04415613]
[1768485458722,10.63354941,145.28,145.25,0.04415613]
[1768485458922,5.26537607,145.27,145.25,0.04415613]
[1768485459126,6.1965,145.29,145.25,0.04415613]
[1768485459322,10.63361317,145.28,145.25,0.04415613]
[1768485459528,5.26548349,145.27,145.23,8.14820821]
[1768485459735,6.197,145.28,145.24,2.12456654]
[1768485459934,5.26559189,145.27,145.24,2.12456654]
[1768485460130,6.197,145.28,145.24,2.12456654]
[1768485460330,5.26603617,145.27,145.24,2.12456654]
[1768485460530,6.197,145.28,145.24,2.12456654]
[1768485460732,5.31123671,145.27,145.24,2.12456654]
[1768485460930,0.04520054,145.27,145.23,10.27277475]
[1768485461130,5.26628472,145.26,145.23,10.27277475]
[1768485461331,0.04520054,145.27,145.23,10.27277475]
[1768485461532,5.26666156,145.26,145.23,10.27277475]
[1768485461731,0.04520054,145.27,145.23,10.27277475]
[1768485462025,0.04520054,145.27,145.24,2.12456654]
[1768485462536,5.26722767,145.26,145.24,2.12456654]
[1768485462739,0.04520054,145.27,145.24,2.12456654]
[1768485463438,0.04520054,145.27,145.24,2.17724904]
[1768485464539,0.04520054,145.27,145.24,0.0526825]
[1768485464733,0.04520054,145.27,145.24,2.17724904]
[1768485464934,6.24240054,145.27,145.24,2.17724904]
[1768485466329,5.26976525,145.26,145.24,2.17724904]
[1768485466540,6.24240054,145.27,145.24,2.17724904]
[1768485467837,6.24240054,145.27,145.24,4.904e-05]
[1768485470435,6.24240054,145.27,145.24,0.05144202]
[1768485472346,6.24240054,145.27,145.24,2.17595952]
[1768485473342,6.24240054,145.27,145.24,0.05139298]
[1768485476755,0.04520054,145.27,145.24,0.05139298]
[1768485477749,6.1976,145.26,145.24,0.05139298]
[1768485477950,6.1976,145.26,145.22,2.12456654]
[1768485478748,5.25225825,145.25,145.22,2.12456654]
[1768485479048,6.1976,145.26,145.22,2.12456654]
[1768485479848,6.1976,145.26,145.23,2.12456654]
[1768485480052,6.1976,145.26,145.21,8.72682942]
[1768485480253,6.1976,145.26,145.22,2.12456654]
[1768485481960,6.1976,145.26,145.21,8.72682942]
[1768485482159,6.1976,145.26,145.22,2.12456654]
[1768485483059,6.1976,145.26,145.21,8.72682942]
[1768485483261,6.1976,145.26,145.22,2.12456654]
[1768485485770,5.25190687,145.25,145.22,2.12456654]
[1768485485967,6.1981,145.25,145.22,2.12456654]
[1768485486870,5.25253236,145.24,145.21,8.72682942]
[1768485487067,4.16477908,145.26,145.21,9.596e-05]
[1768485487271,0.04337309,145.24,145.2,2.12456654]
[1768485488773,6.24217309,145.24,145.17,87.5411]
[1768485488961,6.24217309,145.24,145.21,6.654e-05]
[1768485490073,6.24217309,145.24,145.19,8.72682942]
[1768485490276,6.24217309,145.24,145.21,1.508e-05]
[1768485490774,6.1994,145.22,145.2,2.12456654]
[1768485490974,0.04337309,145.24,145.2,2.12456654]
[1768485491377,5.25104282,145.23,145.2,6.654e-05]
[1768485491573,0.04337309,145.24,145.2,6.654e-05]
[1768485491769,0.04337309,145.24,145.19,8.72682942]
[1768485491770,6.1994,145.22,145.19,8.72682942]
[1768485491976,0.04337309,145.24,145.2,6.654e-05]
[1768485492472,6.1998,145.21,145.17,8.72682942]
[1768485492677,4.32511948,145.24,145.19,6.654e-05]
[1768485492882,0.04889064,145.2,145.19,6.654e-05]
[1768485493069,4.32511948,145.24,145.19,6.654e-05]
[1768485493272,5.24915113,145.23,145.19,6.654e-05]
[1768485493576,4.32511948,145.24,145.19,6.654e-05]
[1768485493778,6.1994,145.22,145.19,6.654e-05]
[1768485493981,4.32511948,145.24,145.19,6.654e-05]
[1768485494176,0.04623917,145.22,145.19,6.654e-05]
[1768485494376,0.04623917,145.22,145.17,8.72682942]
[1768485494377,4.32511948,145.24,145.17,8.72682942]
[1768485494578,5.24785552,145.23,145.2,6.654e-05]
[1768485494879,6.1994,145.22,145.2,6.654e-05]
[1768485495385,6.1994,145.22,145.15,235.68106438]
[1768485495386,6.1994,145.22,145.18,10.85139596]
[1768485495583,6.24632474,145.22,145.2,0.04458938]
[1768485497382,10.72296534,145.22,145.16,8.72682942]
[1768485497582,10.72296534,145.22,145.17,2.12456654]
[1768485498086,6.1999,145.21,145.17,2.12456654]
[1768485499275,4.53488202,145.2,145.13,8.72682942]
[1768485499476,4.53488202,145.2,145.14,2.12456654]
[1768485500482,0.05148253,145.18,145.16,0.04712024]
[1768485500882,10.73528202,145.2,145.16,2.17168678]
[1768485501083,6.2004,145.2,145.16,10.59397815]
[1768485501886,0.04952468,145.19,145.16,10.59397815]
[1768485503789,0.04952468,145.19,145.16,8.46941161]
[1768485503985,0.04952468,145.19,145.16,10.59397815]
[1768485507388,10.82451249,145.22,145.16,10.59397815]
[1768485508491,6.1998,145.21,145.16,10.59397815]
[1768485508687,0.04632821,145.2,145.16,10.59397815]
[1768485511794,0.04632821,145.2,145.16,8.46941161]
[1768485519001,0.04632821,145.2,145.16,14.67121161]
[1768485521498,0.04632821,145.2,145.16,8.46941161]
[1768485523004,0.04632821,145.2,145.16,14.67121161]
[1768485529510,0.04632821,145.2,145.16,8.46941161]
[1768485529810,0.04632821,145.2,145.16,0.04712024]
[1768485530609,0.04632821,145.2,145.16,8.43459508]
[1768485532009,0.04632821,145.2,145.16,14.63639508]
[1768485532205,0.04632821,145.2,145.17,9.50040204]
[1768485534007,0.04632821,145.2,145.17,15.70180204]
[1768485538111,9.83e-06,145.19,145.17,15.70180204]
[1768485538314,0.04632821,145.2,145.17,15.70180204]
[1768485540804,5.38262084,145.23,145.18,9.50040204]
[1768485541012,5.33506172,145.22,145.18,9.50040204]
[1768485541304,5.33506172,145.21,145.18,9.50040204]
[1768485541509,5.38262084,145.23,145.18,9.50040204]
[1768485541710,5.33633134,145.22,145.18,9.50040204]
[1768485541915,5.38262084,145.23,145.19,0.04940319]
[1768485542115,0.05128325,145.21,145.19,0.04940319]
[1768485550115,4.166e-05,145.2,145.19,0.04940319]
[1768485550824,13.1485185,145.25,145.19,9.54980523]
[1768485551020,5.3374947,145.24,145.19,9.54980523]
[1768485551318,5.3374947,145.23,145.19,9.54980523]
[1768485551626,5.3374947,145.22,145.19,9.54980523]
[1768485551827,5.3374947,145.21,145.19,9.54980523]
[1768485552126,0.04445766,145.22,145.19,9.54980523]
[1768485552424,4.365e-05,145.21,145.19,9.54980523]
[1768485552625,0.04445766,145.22,145.19,9.54980523]
[1768485559133,0.04445766,145.22,145.19,15.75030523]
[1768485559436,5.75142815,145.25,145.2,9.50040204]
[1768485559826,88.46010422,145.27,145.2,15.70050204]
[1768485560432,0.04655848,145.25,145.22,0.04479373]
[1768485562739,87.26130302,145.27,145.22,6.24389373]
[1768485562936,87.26130302,145.27,145.22,0.04479373]
[1768485563142,5.92968263,145.29,145.22,9.19278826]
[1768485563338,5.92968263,145.29,145.23,15.34649453]
[1768485563840,5.92968263,145.29,145.24,6.1982]
[1768485564134,5.92968263,145.29,145.25,0.05215962]
[1768485564339,5.25690469,145.28,145.25,0.05215962]
[1768485564540,5.25690469,145.27,145.25,0.05215962]
[1768485564741,5.92968263,145.29,145.25,0.05215962]
[1768485565045,5.30463671,145.28,145.25,0.05215962]
[1768485565234,0.05015358,145.28,145.25,0.05215962]
[1768485565836,0.05015358,145.28,145.25,6.25005962]
[1768485572749,0.05015358,145.28,145.25,15.66658262]
[1768485574447,0.05015358,145.28,145.25,0.05215962]
[1768485574848,5.15254899,145.27,145.25,0.05215962]
[1768485575040,0.05015358,145.28,145.25,0.05215962]
[1768485575242,5.15250189,145.27,145.25,0.05215962]
[1768485575542,0.05015358,145.28,145.25,0.05215962]
[1768485575743,5.15221837,145.27,145.25,0.05215962]
[1768485575948,0.05015358,145.28,145.25,0.05215962]
[1768485576148,5.15222267,145.27,145.25,0.05215962]
[1768485576349,0.05015358,145.28,145.25,0.05215962]
[1768485577049,5.15197005,145.27,145.25,0.05215962]
[1768485577249,0.05015358,145.28,145.25,0.05215962]
[1768485577452,5.15178993,145.27,145.25,0.05215962]
[1768485577747,0.05015358,145.28,145.25,0.05215962]
[1768485577948,5.15178993,145.27,145.25,0.05215962]
[1768485578148,0.05015358,145.28,145.25,0.05215962]
[1768485578349,5.15180586,145.27,145.25,0.05215962]
[1768485578647,0.05015358,145.28,145.25,0.05215962]
[1768485578850,5.1516742,145.27,145.25,0.05215962]
[1768485579151,0.05015358,145.28,145.25,0.05215962]
[1768485579345,5.15171487,145.27,145.25,0.05215962]
[1768485579552,0.05015358,145.28,145.25,0.05215962]
[1768485582355,0.05015358,145.28,145.25,6.25005962]
[1768485588052,0.05015358,145.28,145.25,0.05215962]
[1768485590350,5.15309747,145.27,145.25,0.05215962]
[1768485590550,0.05015358,145.28,145.25,0.05215962]
[1768485598471,5.1588373,145.27,145.25,0.05215962]
[1768485598675,0.05015358,145.28,145.25,0.05215962]
[1768485598867,5.1588372,145.27,145.25,0.05215962]
[1768485599066,0.05015358,145.28,145.25,0.05215962]
[1768485599367,5.1588372,145.27,145.25,0.05215962]
[1768485599562,0.05015358,145.28,145.25,0.05215962]
[1768485599762,5.15968412,145.27,145.25,0.05215962]
[1768485599963,0.05015358,145.28,145.25,0.05215962]
[1768485600175,5.15968412,145.27,145.25,0.05215962]
[1768485600472,0.05015358,145.28,145.25,0.05215962]
[1768485600669,5.16056863,145.27,145.25,0.05215962]
[1768485600872,0.05015358,145.28,145.25,0.05215962]
[1768485601173,5.16056644,145.27,145.25,0.05215962]
[1768485601372,0.05015358,145.28,145.25,0.05215962]
[1768485601674,5.16169392,145.27,145.25,0.05215962]
[1768485601869,0.05015358,145.28,145.25,0.05215962]
[1768485602071,5.16168953,145.27,145.25,0.05215962]
[1768485602271,0.05015358,145.28,145.25,0.05215962]
[1768485602473,5.16300195,145.27,145.25,0.05215962]
[1768485602666,0.05015358,145.28,145.25,0.05215962]
[1768485602870,5.16300195,145.27,145.25,0.05215962]
[1768485603071,0.05015358,145.28,145.25,0.05215962]
[1768485603270,5.16308743,145.27,145.25,0.05215962]
[1768485603477,0.05015358,145.28,145.25,0.05215962]
[1768485603677,5.16458121,145.27,145.25,0.05215962]
[1768485603873,0.05015358,145.28,145.25,0.05215962]
[1768485604072,5.16458227,145.27,145.25,0.05215962]
[1768485604276,0.05015358,145.28,145.25,0.05215962]
[1768485604474,10.4150201,145.27,145.22,9.20107467]
[1768485604681,6.37772687,145.25,145.2,9.20107467]
[1768485604877,5.16650671,145.24,145.2,9.20107467]
[1768485605381,2.12488317,145.26,145.2,9.20107467]
[1768485605783,2.12488317,145.26,145.22,0.05043105]
[1768485605985,8.51059957,145.27,145.22,0.05043105]
[1768485606285,5.2508405,145.26,145.22,0.05043105]
[1768485606584,8.51059957,145.27,145.22,0.05043105]
[1768485606771,5.25193256,145.26,145.22,0.05043105]
[1768485606977,0.05276383,145.26,145.22,0.05043105]
[1768485610180,0.05276383,145.26,145.22,9.25150572]
[1768485611382,9.93118123,145.29,145.22,9.25150572]
[1768485611689,12.0560644,145.29,145.22,9.25150572]
[1768485612484,0.04862632,145.27,145.22,9.25150572]
[1768485612782,0.04862632,145.27,145.23,6.1988]
[1768485612979,0.04862632,145.27,145.23,15.39987467]
[1768485617285,5.14456342,145.26,145.23,15.39987467]
[1768485617486,0.04862632,145.27,145.23,15.39987467]
[1768485617786,5.14446485,145.26,145.23,15.39987467]
[1768485617986,0.04862632,145.27,145.23,15.39987467]
[1768485618285,5.14446485,145.26,145.23,15.39987467]
[1768485618481,0.04862632,145.27,145.23,15.39987467]
[1768485619192,5.14457709,145.26,145.23,15.39987467]
[1768485619393,0.04862632,145.27,145.23,15.39987467]
[1768485619594,5.14447761,145.26,145.23,15.39987467]
[1768485619790,0.04862632,145.27,145.23,15.39987467]
[1768485619991,5.14447761,145.26,145.23,15.39987467]
[1768485620287,0.04862632,145.27,145.23,15.39987467]
[1768485620491,5.14448016,145.26,145.23,15.39987467]
[1768485620691,0.04862632,145.27,145.23,15.39987467]
[1768485620895,5.14448016,145.26,145.23,9.20107467]
[1768485621088,0.04862632,145.27,145.23,9.20107467]
[1768485621288,5.14459177,145.26,145.23,9.20107467]
[1768485621486,0.04862632,145.27,145.23,9.20107467]
[1768485621686,5.14448309,145.26,145.23,9.20107467]
[1768485621890,0.04862632,145.27,145.23,9.20107467]
[1768485622091,5.14448309,145.26,145.23,9.20107467]
[1768485622292,2.17350949,145.27,145.23,9.20107467]
[1768485622487,5.14470834,145.26,145.23,9.20107467]
[1768485622682,2.17350949,145.27,145.23,9.20107467]
[1768485622894,5.14459626,145.26,145.23,9.20107467]
[1768485623189,2.17350949,145.27,145.23,9.20107467]
[1768485623395,5.14459792,145.26,145.23,9.20107467]
[1768485623696,2.17350949,145.27,145.23,9.20107467]
[1768485623994,5.1444891,145.26,145.23,9.20107467]
[1768485624190,2.17350949,145.27,145.23,9.20107467]
[1768485624497,5.14473942,145.26,145.23,9.20107467]
[1768485624793,0.04862632,145.27,145.23,9.20107467]
[1768485625488,5.14473846,145.26,145.23,9.20107467]
[1768485625689,0.04862632,145.27,145.23,9.20107467]
[1768485625889,5.14484834,145.26,145.23,9.20107467]
[1768485626091,0.04862632,145.27,145.23,9.20107467]
[1768485626292,5.1448514,145.26,145.23,9.20107467]
[1768485626589,0.04862632,145.27,145.23,9.20107467]
[1768485626897,5.1447505,145.26,145.23,9.20107467]
[1768485627096,0.04862632,145.27,145.23,9.20107467]
[1768485627597,5.14486217,145.26,145.23,9.20107467]
[1768485627792,0.04862632,145.27,145.23,9.20107467]
[1768485628095,5.14476182,145.26,145.23,9.20107467]
[1768485628297,0.04862632,145.27,145.23,9.20107467]
[1768485628497,5.14477541,145.26,145.23,9.20107467]
[1768485628698,0.04862632,145.27,145.23,9.20107467]
[1768485628997,5.1447754,145.26,145.23,9.20107467]
[1768485629198,0.04862632,145.27,145.23,9.20107467]
[1768485629394,5.14500705,145.26,145.23,9.20107467]
[1768485629693,0.04862632,145.27,145.23,9.20107467]
[1768485629896,5.14478939,145.26,145.23,9.20107467]
[1768485630096,0.04862632,145.27,145.23,9.20107467]
[1768485630297,5.1449003,145.26,145.23,9.20107467]
[1768485630598,0.04862632,145.27,145.23,9.20107467]
[1768485630792,5.1448034,145.26,145.23,9.20107467]
[1768485630992,0.04862632,145.27,145.23,9.20107467]
[1768485631193,5.1448034,145.26,145.23,9.20107467]
[1768485631390,0.04862632,145.27,145.23,9.20107467]
[1768485631590,5.14481822,145.26,145.23,9.20107467]
[1768485631791,0.04862632,145.27,145.23,9.20107467]
[1768485631987,5.14481822,145.26,145.23,9.20107467]
[1768485632188,0.04862632,145.27,145.23,9.20107467]
[1768485632398,5.14483345,145.26,145.23,9.20107467]
[1768485632599,0.04862632,145.27,145.23,9.20107467]
[1768485632799,5.14483345,145.26,145.23,9.20107467]
[1768485633095,0.04862632,145.27,145.23,9.20107467]
[1768485633300,5.14494344,145.26,145.23,9.20107467]
[1768485633500,0.04862632,145.27,145.23,9.20107467]
[1768485633700,5.14484909,145.26,145.23,9.20107467]
[1768485633895,0.04862632,145.27,145.23,9.20107467]
[1768485634094,5.14484909,145.26,145.23,9.20107467]
[1768485634294,0.04862632,145.27,145.23,9.20107467]
[1768485636702,0.04862632,145.27,145.22,6.24963105]
[1768485636905,10.05105257,145.27,145.22,0.05043105]
[1768485637199,0.04862632,145.27,145.22,9.84525609]
[1768485638996,6.24592632,145.27,145.22,9.84525609]
[1768485641895,6.1977,145.26,145.22,9.84525609]
[1768485643605,6.1981,145.25,145.22,9.84525609]
[1768485643906,0.04862632,145.27,145.22,9.84525609]
[1768485646810,5.14555376,145.26,145.22,9.84525609]
[1768485647109,0.04862632,145.27,145.22,9.84525609]
[1768485647310,5.14564631,145.26,145.22,9.84525609]
[1768485647505,0.04862632,145.27,145.22,9.84525609]
[1768485647706,5.14564631,145.26,145.22,9.84525609]
[1768485648006,0.04862632,145.27,145.22,9.84525609]
[1768485648205,5.14564525,145.26,145.22,9.84525609]
[1768485648406,0.04862632,145.27,145.22,9.84525609]
[1768485648708,5.14573753,145.26,145.22,9.84525609]
[1768485648906,0.04862632,145.27,145.22,9.84525609]
[1768485649207,5.14573753,145.26,145.22,9.84525609]
[1768485649509,0.04862632,145.27,145.22,9.84525609]
[1768485649710,5.14582589,145.26,145.22,9.84525609]
[1768485650009,0.04862632,145.27,145.22,9.84525609]
[1768485650211,5.14582808,145.26,145.22,9.84525609]
[1768485650409,0.04862632,145.27,145.22,9.84525609]
[1768485650609,5.14644199,145.26,145.22,9.84525609]
[1768485650810,0.04862632,145.27,145.22,9.84525609]
[1768485651006,5.14644199,145.26,145.22,9.84525609]
[1768485651208,0.04862632,145.27,145.22,9.84525609]
[1768485651408,5.14715102,145.26,145.22,9.84525609]
[1768485651611,0.04862632,145.27,145.22,9.84525609]
[1768485651810,5.14715208,145.26,145.22,9.84525609]
[1768485652007,0.04862632,145.27,145.22,9.84525609]
[1768485652202,5.14715208,145.26,145.22,9.84525609]
[1768485652506,0.04862632,145.27,145.22,9.84525609]
[1768485652706,5.1480061,145.26,145.22,9.84525609]
[1768485652911,0.04862632,145.27,145.22,9.84525609]
[1768485653113,5.1480061,145.26,145.22,9.84525609]
[1768485653307,0.04862632,145.27,145.22,9.84525609]
[1768485653507,5.14881726,145.26,145.22,9.84525609]
[1768485653716,0.04862632,145.27,145.22,9.84525609]
[1768485653917,5.14881726,145.26,145.22,9.84525609]
[1768485654117,0.04862632,145.27,145.22,9.84525609]
[1768485654321,5.14381858,145.26,145.22,9.84525609]
[1768485654512,0.04862632,145.27,145.22,9.84525609]
[1768485654715,5.14385899,145.26,145.22,9.84525609]
[1768485654911,0.04862632,145.27,145.22,9.84525609]
[1768485655220,5.14385899,145.26,145.23,9.66731809]
[1768485655516,0.04862632,145.27,145.23,9.66731809]
[1768485655717,5.14520167,145.26,145.23,9.66731809]
[1768485655916,0.04862632,145.27,145.23,9.66731809]
[1768485656114,5.14520167,145.26,145.23,9.66731809]
[1768485656418,0.04862632,145.27,145.23,9.66731809]
[1768485656716,5.14715536,145.26,145.23,9.66731809]
[1768485656916,0.04862632,145.27,145.23,9.66731809]
[1768485657116,5.14715536,145.26,145.23,9.66731809]
[1768485657306,0.04862632,145.27,145.23,9.66731809]
[1768485657508,5.14715724,145.26,145.23,9.66731809]
[1768485657716,0.04862632,145.27,145.23,9.66731809]
[1768485657917,5.14715724,145.26,145.23,9.66731809]
[1768485658117,0.04862632,145.27,145.23,9.66731809]
[1768485658320,5.14715912,145.26,145.23,9.66731809]
[1768485658516,0.04862632,145.27,145.23,9.66731809]
[1768485658717,5.14715689,145.26,145.23,9.66731809]
[1768485658917,0.04862632,145.27,145.23,9.66731809]
[1768485659119,5.14715689,145.26,145.23,9.66731809]
[1768485659317,0.04862632,145.27,145.23,9.66731809]
[1768485659618,5.1471548,145.26,145.23,9.66731809]
[1768485659819,0.04862632,145.27,145.23,9.66731809]
[1768485660117,5.1471548,145.26,145.23,9.66731809]
[1768485660320,0.04862632,145.27,145.23,9.66731809]
[1768485660621,5.14715276,145.26,145.23,9.66731809]
[1768485660818,0.04862632,145.27,145.23,9.66731809]
[1768485661019,5.14715276,145.26,145.23,9.66731809]
[1768485661220,0.04862632,145.27,145.23,9.66731809]
[1768485661418,5.14715047,145.26,145.23,9.66731809]
[1768485661615,0.04862632,145.27,145.23,9.66731809]
[1768485661821,5.14693338,145.26,145.23,9.66731809]
[1768485662021,0.04862632,145.27,145.23,9.66731809]
[1768485662323,5.14688864,145.26,145.23,9.66731809]
[1768485662514,0.04862632,145.27,145.23,9.66731809]
[1768485662714,5.14622441,145.26,145.23,9.66731809]
[1768485662915,0.04862632,145.27,145.23,9.66731809]
[1768485663118,5.14622441,145.26,145.23,9.66731809]